[Event "Late-Titled-Tuesday-Blitz-February-20-2024"]
[Site "Chess.com"]
[Date "2024.02.20"]
[Round "1"]
[White "IamSchrodingersCat"]
[Black "gunslinger222"]
[Result "1-0"]
[WhiteElo "2611"]
[BlackElo "2301"]
[TimeControl "180+1"]
[EndTime "14:08:11 PST"]
[Termination "IamSchrodingersCat won on time"]

1. e4 {[%clk 0:03:00.9]} 1... d5 {[%clk 0:02:59.5]} 2. exd5 {[%clk 0:03:00.7]}
2... Qxd5 {[%clk 0:03:00.4]} 3. Nc3 {[%clk 0:03:01]} 3... Qa5 {[%clk 0:02:59.6]}
4. Bc4 {[%clk 0:03:00.9]} 4... Nf6 {[%clk 0:03:00.1]} 5. d3 {[%clk 0:03:00.1]}
5... Bf5 {[%clk 0:02:58]} 6. Bd2 {[%clk 0:02:59.4]} 6... Qb6 {[%clk 0:02:53.9]}
7. Bb3 {[%clk 0:02:45.9]} 7... e6 {[%clk 0:02:49.9]} 8. Nf3 {[%clk 0:02:13.7]}
8... Nbd7 {[%clk 0:02:44.1]} 9. Qe2 {[%clk 0:02:03.2]} 9... Be7 {[%clk
0:02:39.1]} 10. O-O-O {[%clk 0:01:33.7]} 10... Nc5 {[%clk 0:02:35]} 11. Nh4
{[%clk 0:01:25.2]} 11... Nxb3+ {[%clk 0:02:31]} 12. axb3 {[%clk 0:01:26.1]}
12... Bg4 {[%clk 0:02:24.5]} 13. f3 {[%clk 0:01:25.1]} 13... Bh5 {[%clk
0:02:21.4]} 14. g4 {[%clk 0:01:23.8]} 14... Bg6 {[%clk 0:02:21.8]} 15. Ng2
{[%clk 0:01:15.5]} 15... O-O-O {[%clk 0:02:14.4]} 16. h4 {[%clk 0:01:13.7]}
16... h5 {[%clk 0:01:49.8]} 17. Nf4 {[%clk 0:01:10.3]} 17... hxg4 {[%clk
0:01:48]} 18. Nxg6 {[%clk 0:00:59.8]} 18... fxg6 {[%clk 0:01:48.9]} 19. fxg4
{[%clk 0:00:57.4]} 19... Rd6 {[%clk 0:01:30.8]} 20. Rde1 {[%clk 0:00:43.4]}
20... Qa6 {[%clk 0:01:27.5]} 21. Kb1 {[%clk 0:00:42.2]} 21... Nd7 {[%clk
0:01:15.7]} 22. Bg5 {[%clk 0:00:27.2]} 22... Bf6 {[%clk 0:01:08.4]} 23. Ne4
{[%clk 0:00:25.2]} 23... Rc6 {[%clk 0:01:02.7]} 24. c3 {[%clk 0:00:21.2]} 24...
Qb6 {[%clk 0:00:53.4]} 25. b4 {[%clk 0:00:20.9]} 25... a5 {[%clk 0:00:52.4]} 26.
bxa5 {[%clk 0:00:20.7]} 26... Qxa5 {[%clk 0:00:51.9]} 27. d4 {[%clk 0:00:21.2]}
27... Qb6 {[%clk 0:00:47.6]} 28. Kc2 {[%clk 0:00:18.6]} 28... e5 {[%clk
0:00:44.3]} 29. Ra1 {[%clk 0:00:17.5]} 29... exd4 {[%clk 0:00:41]} 30. Bxf6
{[%clk 0:00:17]} 30... gxf6 {[%clk 0:00:40.8]} 31. Ra8+ {[%clk 0:00:15.8]} 31...
Nb8 {[%clk 0:00:41.1]} 32. Qd3 {[%clk 0:00:14.4]} 32... dxc3 {[%clk 0:00:38.9]}
33. Nxc3 {[%clk 0:00:14.6]} 33... Qf2+ {[%clk 0:00:38.6]} 34. Kb1 {[%clk
0:00:14.6]} 34... Qg2 {[%clk 0:00:35.1]} 35. Rd1 {[%clk 0:00:13.5]} 35... Rd6
{[%clk 0:00:31.7]} 36. Nd5 {[%clk 0:00:06.7]} 36... Rxd5 {[%clk 0:00:20.6]} 37.
Qxd5 {[%clk 0:00:07.6]} 37... Qxd5 {[%clk 0:00:21]} 38. Rxd5 {[%clk 0:00:07.8]}
38... Rxh4 {[%clk 0:00:21.7]} 39. g5 {[%clk 0:00:07.2]} 39... Rh5 {[%clk
0:00:20]} 40. Raa5 {[%clk 0:00:03.9]} 40... f5 {[%clk 0:00:16.4]} 41. Ra4 {[%clk
0:00:02.5]} 41... Rxg5 {[%clk 0:00:15.4]} 42. Rh4 {[%clk 0:00:03.1]} 42... b6
{[%clk 0:00:13.6]} 43. Rh7 {[%clk 0:00:02.7]} 43... Rg2 {[%clk 0:00:10.2]} 44.
Re5 {[%clk 0:00:02.4]} 44... Kb7 {[%clk 0:00:09.9]} 45. Ree7 {[%clk 0:00:02.5]}
45... Na6 {[%clk 0:00:10.5]} 46. Reg7 {[%clk 0:00:03.1]} 46... g5 {[%clk
0:00:10.1]} 47. Rh5 {[%clk 0:00:03.1]} 47... g4 {[%clk 0:00:08.5]} 48. Rxf5
{[%clk 0:00:04]} 48... Nc5 {[%clk 0:00:07.7]} 49. Rff7 {[%clk 0:00:03.8]} 49...
Ne6 {[%clk 0:00:07.3]} 50. Rg8 {[%clk 0:00:04]} 50... g3 {[%clk 0:00:06.6]} 51.
Rf6 {[%clk 0:00:04.4]} 51... Rf2 {[%clk 0:00:05.3]} 52. Rxe6 {[%clk 0:00:03.1]}
52... g2 {[%clk 0:00:05.8]} 53. Reg6 {[%clk 0:00:03.6]} 53... Rf1+ {[%clk
0:00:03.4]} 54. Ka2 {[%clk 0:00:03.8]} 1-0

[Event "Late-Titled-Tuesday-Blitz-February-20-2024"]
[Site "Chess.com"]
[Date "2024.02.20"]
[Round "1"]
[White "kylelancman"]
[Black "penguingm1"]
[Result "1-0"]
[WhiteElo "2473"]
[BlackElo "2847"]
[TimeControl "180+1"]
[EndTime "14:08:15 PST"]
[Termination "kylelancman won by resignation"]

1. e4 {[%clk 0:03:00.9]} 1... e5 {[%clk 0:02:58]} 2. Nf3 {[%clk 0:02:57]} 2...
Nc6 {[%clk 0:02:56.8]} 3. Nc3 {[%clk 0:02:56.4]} 3... Nf6 {[%clk 0:02:46]} 4. a3
{[%clk 0:02:55.2]} 4... g6 {[%clk 0:02:41.4]} 5. Bc4 {[%clk 0:02:51]} 5... Bg7
{[%clk 0:02:26.7]} 6. d3 {[%clk 0:02:44.4]} 6... d6 {[%clk 0:02:26.6]} 7. h3
{[%clk 0:02:41.7]} 7... h6 {[%clk 0:02:26]} 8. O-O {[%clk 0:02:39.3]} 8... a6
{[%clk 0:02:26.1]} 9. Be3 {[%clk 0:02:33.3]} 9... Qe7 {[%clk 0:02:25.8]} 10. Re1
{[%clk 0:02:32.3]} 10... O-O {[%clk 0:02:23.2]} 11. Qd2 {[%clk 0:02:29.3]} 11...
Kh7 {[%clk 0:02:20.9]} 12. Nd5 {[%clk 0:02:24.6]} 12... Nxd5 {[%clk 0:02:14.7]}
13. Bxd5 {[%clk 0:02:15.5]} 13... Be6 {[%clk 0:02:11.4]} 14. Rad1 {[%clk
0:02:02.1]} 14... f5 {[%clk 0:02:03.8]} 15. Qe2 {[%clk 0:01:51]} 15... Bxd5
{[%clk 0:01:55.6]} 16. exd5 {[%clk 0:01:50.5]} 16... Nb8 {[%clk 0:01:41.3]} 17.
Bc1 {[%clk 0:01:43.9]} 17... Qf7 {[%clk 0:01:39.6]} 18. c4 {[%clk 0:01:41.6]}
18... Nd7 {[%clk 0:01:36.5]} 19. Qc2 {[%clk 0:01:31.1]} 19... Rfe8 {[%clk
0:01:30.1]} 20. b4 {[%clk 0:01:25.1]} 20... Re7 {[%clk 0:01:29.4]} 21. Re2
{[%clk 0:01:21.8]} 21... Rae8 {[%clk 0:01:28.9]} 22. Rde1 {[%clk 0:01:14.1]}
22... Kg8 {[%clk 0:01:25.3]} 23. a4 {[%clk 0:01:04.5]} 23... g5 {[%clk
0:01:24.8]} 24. a5 {[%clk 0:01:02.2]} 24... Qg6 {[%clk 0:01:18.8]} 25. Bb2
{[%clk 0:00:54.7]} 25... Nf6 {[%clk 0:01:06.1]} 26. Qb3 {[%clk 0:00:38.9]} 26...
Nh5 {[%clk 0:01:00.7]} 27. Bc1 {[%clk 0:00:36.2]} 27... Bf6 {[%clk 0:00:55]} 28.
c5 {[%clk 0:00:35.1]} 28... g4 {[%clk 0:00:53.5]} 29. hxg4 {[%clk 0:00:34.5]}
29... fxg4 {[%clk 0:00:53.2]} 30. Nd2 {[%clk 0:00:34.1]} 30... Nf4 {[%clk
0:00:50.1]} 31. Re3 {[%clk 0:00:34.4]} 31... h5 {[%clk 0:00:42.5]} 32. Ne4
{[%clk 0:00:34.4]} 32... Bg7 {[%clk 0:00:41.3]} 33. cxd6 {[%clk 0:00:34]} 33...
cxd6 {[%clk 0:00:41.4]} 34. b5 {[%clk 0:00:33.3]} 34... axb5 {[%clk 0:00:36.6]}
35. Ba3 {[%clk 0:00:33.4]} 35... Rd8 {[%clk 0:00:34.8]} 36. Qb4 {[%clk
0:00:29.1]} 36... Nxd5 {[%clk 0:00:30]} 37. Qb3 {[%clk 0:00:26.5]} 37... Qf7
{[%clk 0:00:27.3]} 38. Ng5 {[%clk 0:00:26.4]} 38... Qg6 {[%clk 0:00:17.1]} 39.
Qxd5+ {[%clk 0:00:26.3]} 39... Kh8 {[%clk 0:00:17.8]} 40. Ne4 {[%clk 0:00:25.6]}
40... h4 {[%clk 0:00:17.3]} 41. Rc1 {[%clk 0:00:20.5]} 41... Rf7 {[%clk
0:00:15.2]} 42. Nxd6 {[%clk 0:00:19.1]} 42... Rfd7 {[%clk 0:00:14.9]} 43. Qe4
{[%clk 0:00:17]} 43... Rxd6 {[%clk 0:00:15]} 44. Bxd6 {[%clk 0:00:16.6]} 44...
Rxd6 {[%clk 0:00:12.8]} 45. Qxg6 {[%clk 0:00:14.5]} 45... Rxg6 {[%clk
0:00:13.7]} 46. Re4 {[%clk 0:00:13.7]} 46... h3 {[%clk 0:00:12.4]} 47. gxh3
{[%clk 0:00:12.9]} 47... gxh3+ {[%clk 0:00:13.3]} 48. Kh2 {[%clk 0:00:13.1]}
48... Rg2+ {[%clk 0:00:12.8]} 49. Kxh3 {[%clk 0:00:13.3]} 49... Rxf2 {[%clk
0:00:13.7]} 50. Rb1 {[%clk 0:00:13.1]} 50... Rf3+ {[%clk 0:00:12.8]} 51. Kg2
{[%clk 0:00:12.6]} 51... Rxd3 {[%clk 0:00:13.1]} 52. Rxb5 {[%clk 0:00:12.9]}
52... Ra3 {[%clk 0:00:13.6]} 53. Rxb7 {[%clk 0:00:12.4]} 53... Bf6 {[%clk
0:00:13.1]} 54. Rc4 {[%clk 0:00:09.1]} 54... Ra2+ {[%clk 0:00:02.4]} 55. Kf3
{[%clk 0:00:08.6]} 55... e4+ {[%clk 0:00:02.5]} 56. Kxe4 {[%clk 0:00:07.8]}
56... Bd8 {[%clk 0:00:02.3]} 57. Rc8 {[%clk 0:00:07.2]} 57... Re2+ {[%clk
0:00:02.9]} 58. Kf3 {[%clk 0:00:06.8]} 58... Rd2 {[%clk 0:00:03.5]} 59. Rbb8
{[%clk 0:00:06.9]} 59... Kg7 {[%clk 0:00:04]} 60. Rxd8 {[%clk 0:00:07]} 60...
Ra2 {[%clk 0:00:04.9]} 61. Rd6 {[%clk 0:00:07.1]} 61... Kf7 {[%clk 0:00:03.2]}
62. Rb7+ {[%clk 0:00:07.7]} 62... Ke8 {[%clk 0:00:03.8]} 63. Rh6 {[%clk
0:00:07.8]} 1-0

[Event "Late-Titled-Tuesday-Blitz-February-20-2024"]
[Site "Chess.com"]
[Date "2024.02.20"]
[Round "1"]
[White "CaspiIsrael"]
[Black "MeisterJabo"]
[Result "1/2-1/2"]
[WhiteElo "2719"]
[BlackElo "2394"]
[TimeControl "180+1"]
[EndTime "14:08:21 PST"]
[Termination "Game drawn by repetition"]

1. e4 {[%clk 0:02:58.6]} 1... e5 {[%clk 0:03:00.1]} 2. d4 {[%clk 0:02:57.1]}
2... exd4 {[%clk 0:03:00.2]} 3. Qxd4 {[%clk 0:02:58]} 3... Nc6 {[%clk
0:02:59.9]} 4. Qe3 {[%clk 0:02:57.7]} 4... Nf6 {[%clk 0:03:00.3]} 5. Bd2 {[%clk
0:02:58.1]} 5... d6 {[%clk 0:02:58.6]} 6. c4 {[%clk 0:02:58.1]} 6... Be7 {[%clk
0:02:57.8]} 7. Nc3 {[%clk 0:02:58.7]} 7... Be6 {[%clk 0:02:52.5]} 8. f3 {[%clk
0:02:55.6]} 8... O-O {[%clk 0:02:10.1]} 9. O-O-O {[%clk 0:02:53.2]} 9... a6
{[%clk 0:02:09.2]} 10. Kb1 {[%clk 0:02:44.3]} 10... Ne5 {[%clk 0:02:08.6]} 11.
Nd5 {[%clk 0:02:30.2]} 11... c6 {[%clk 0:02:07.5]} 12. Nxe7+ {[%clk 0:02:25.7]}
12... Qxe7 {[%clk 0:02:07.7]} 13. Qd4 {[%clk 0:02:20.2]} 13... Rfd8 {[%clk
0:02:00.6]} 14. Ba5 {[%clk 0:02:19]} 14... Rd7 {[%clk 0:01:54.3]} 15. g4 {[%clk
0:02:15.7]} 15... c5 {[%clk 0:01:50]} 16. Qc3 {[%clk 0:02:14.2]} 16... b5 {[%clk
0:01:48.5]} 17. g5 {[%clk 0:02:11.6]} 17... Nh5 {[%clk 0:01:40.2]} 18. Qe3
{[%clk 0:01:49.1]} 18... Bxc4 {[%clk 0:01:33.1]} 19. f4 {[%clk 0:01:44.9]} 19...
Bxf1 {[%clk 0:01:26.4]} 20. fxe5 {[%clk 0:01:43.9]} 20... Bg2 {[%clk 0:01:25.2]}
21. Nf3 {[%clk 0:01:42.7]} 21... Bxh1 {[%clk 0:01:23.3]} 22. exd6 {[%clk
0:01:42.6]} 22... Rxd6 {[%clk 0:00:47]} 23. Rxh1 {[%clk 0:01:40.8]} 23... Re8
{[%clk 0:00:45.8]} 24. Re1 {[%clk 0:01:40.7]} 24... Re6 {[%clk 0:00:43.2]} 25.
e5 {[%clk 0:01:39.3]} 25... b4 {[%clk 0:00:29.2]} 26. Qe4 {[%clk 0:01:30.6]}
26... g6 {[%clk 0:00:23.6]} 27. Rd1 {[%clk 0:01:26.7]} 27... Kg7 {[%clk
0:00:10.7]} 28. Rd5 {[%clk 0:01:26.6]} 28... h6 {[%clk 0:00:08.9]} 29. gxh6+
{[%clk 0:01:24]} 29... Kxh6 {[%clk 0:00:09.8]} 30. Qe3+ {[%clk 0:01:23.9]} 30...
Kg7 {[%clk 0:00:09.9]} 31. Rxc5 {[%clk 0:01:23]} 31... Qb7 {[%clk 0:00:07]} 32.
Rc4 {[%clk 0:01:11.4]} 32... Qb5 {[%clk 0:00:06.4]} 33. Rc5 {[%clk 0:01:05.6]}
33... Qf1+ {[%clk 0:00:06.4]} 34. Rc1 {[%clk 0:01:04.2]} 34... Qb5 {[%clk
0:00:05.8]} 35. Bc7 {[%clk 0:01:03.7]} 35... Rc6 {[%clk 0:00:04.3]} 36. Rxc6
{[%clk 0:00:31.8]} 36... Qxc6 {[%clk 0:00:05.2]} 37. Ba5 {[%clk 0:00:30.8]}
37... Qb5 {[%clk 0:00:04.1]} 38. Bc7 {[%clk 0:00:28.2]} 38... Qf1+ {[%clk
0:00:04.2]} 39. Kc2 {[%clk 0:00:27.8]} 39... Qc4+ {[%clk 0:00:04.3]} 40. Kb1
{[%clk 0:00:26.9]} 40... Qxc7 {[%clk 0:00:04.5]} 41. a3 {[%clk 0:00:26.1]} 41...
bxa3 {[%clk 0:00:04.1]} 42. Qxa3 {[%clk 0:00:26.4]} 42... Re6 {[%clk 0:00:04.7]}
43. h4 {[%clk 0:00:25.7]} 43... Qc6 {[%clk 0:00:04.8]} 44. Ka1 {[%clk
0:00:25.3]} 44... Qe4 {[%clk 0:00:04.1]} 45. Qc3 {[%clk 0:00:22.8]} 45... Nf4
{[%clk 0:00:02.3]} 46. Ng5 {[%clk 0:00:22.2]} 46... Qe2 {[%clk 0:00:01.7]} 47.
Nxe6+ {[%clk 0:00:21.6]} 47... Nxe6 {[%clk 0:00:02.6]} 48. Qg3 {[%clk
0:00:20.7]} 48... Qe4 {[%clk 0:00:02.2]} 49. Ka2 {[%clk 0:00:20.6]} 49... Qc4+
{[%clk 0:00:02.1]} 50. Ka3 {[%clk 0:00:19.9]} 50... Qe4 {[%clk 0:00:03]} 51. h5
{[%clk 0:00:18.9]} 51... Nc5 {[%clk 0:00:02.4]} 52. b3 {[%clk 0:00:18.8]} 52...
Ne6 {[%clk 0:00:01.6]} 53. hxg6 {[%clk 0:00:18]} 53... Qxg6 {[%clk 0:00:02.5]}
54. Qc3 {[%clk 0:00:16.8]} 54... Qg5 {[%clk 0:00:03.2]} 55. Qa5 {[%clk
0:00:13.6]} 55... Qf5 {[%clk 0:00:02.8]} 56. Qxa6 {[%clk 0:00:13.4]} 56... Qxe5
{[%clk 0:00:03.2]} 57. Qd3 {[%clk 0:00:13.8]} 57... Ng5 {[%clk 0:00:03.3]} 58.
b4 {[%clk 0:00:13.6]} 58... Ne4 {[%clk 0:00:03.6]} 59. b5 {[%clk 0:00:13.1]}
59... Qc3+ {[%clk 0:00:03.9]} 60. Qxc3+ {[%clk 0:00:12.7]} 60... Nxc3 {[%clk
0:00:04.8]} 61. b6 {[%clk 0:00:13.3]} 61... Nb5+ {[%clk 0:00:03.2]} 62. Kb4
{[%clk 0:00:13.7]} 62... Nd6 {[%clk 0:00:04.1]} 63. Kc5 {[%clk 0:00:14.2]} 63...
Nb7+ {[%clk 0:00:03.2]} 64. Kc6 {[%clk 0:00:14.6]} 64... Na5+ {[%clk 0:00:03.7]}
65. Kb5 {[%clk 0:00:14.9]} 65... Nb7 {[%clk 0:00:04.3]} 66. Kc6 {[%clk
0:00:15.5]} 66... Na5+ {[%clk 0:00:04.8]} 67. Kb5 {[%clk 0:00:16]} 67... Nb7
{[%clk 0:00:05.2]} 68. Kc6 {[%clk 0:00:16.1]} 1/2-1/2

[Event "Late-Titled-Tuesday-Blitz-February-20-2024"]
[Site "Chess.com"]
[Date "2024.02.20"]
[Round "1"]
[White "Korchmar_Vasiliy"]
[Black "ElDivis"]
[Result "1/2-1/2"]
[WhiteElo "2766"]
[BlackElo "2420"]
[TimeControl "180+1"]
[EndTime "14:08:37 PST"]
[Termination "Game drawn by stalemate"]

1. e4 {[%clk 0:02:57.2]} 1... c5 {[%clk 0:02:58.9]} 2. d4 {[%clk 0:02:55.4]}
2... cxd4 {[%clk 0:02:58.6]} 3. Qxd4 {[%clk 0:02:56.3]} 3... Nc6 {[%clk
0:02:58.2]} 4. Qd3 {[%clk 0:02:56.8]} 4... Nf6 {[%clk 0:02:53]} 5. Nc3 {[%clk
0:02:57]} 5... e6 {[%clk 0:02:50.6]} 6. Bf4 {[%clk 0:02:54.6]} 6... Bb4 {[%clk
0:02:47.2]} 7. O-O-O {[%clk 0:02:53.7]} 7... O-O {[%clk 0:02:42.4]} 8. Nge2
{[%clk 0:02:52.4]} 8... d5 {[%clk 0:02:35.9]} 9. exd5 {[%clk 0:02:50.6]} 9...
exd5 {[%clk 0:02:30.9]} 10. Nxd5 {[%clk 0:02:51.5]} 10... Nxd5 {[%clk 0:02:28]}
11. Qxd5 {[%clk 0:02:52.4]} 11... Qxd5 {[%clk 0:02:28.1]} 12. Rxd5 {[%clk
0:02:51]} 12... Be6 {[%clk 0:02:29]} 13. Rb5 {[%clk 0:02:31.1]} 13... Bxa2
{[%clk 0:02:25.9]} 14. Rxb7 {[%clk 0:02:28.8]} 14... a5 {[%clk 0:02:15.3]} 15.
Nc3 {[%clk 0:02:14.4]} 15... Be6 {[%clk 0:01:37.4]} 16. Bd3 {[%clk 0:02:09.9]}
16... a4 {[%clk 0:01:32.2]} 17. Be4 {[%clk 0:02:07.8]} 17... Bxc3 {[%clk
0:01:25.9]} 18. bxc3 {[%clk 0:01:48.8]} 18... Na5 {[%clk 0:01:07.3]} 19. Rb4
{[%clk 0:01:41.6]} 19... Rac8 {[%clk 0:00:41.1]} 20. Rxa4 {[%clk 0:01:38.7]}
20... Nc4 {[%clk 0:00:36.1]} 21. Rd1 {[%clk 0:01:32.2]} 21... h6 {[%clk
0:00:26.6]} 22. h4 {[%clk 0:01:31]} 22... Rc5 {[%clk 0:00:22.8]} 23. Rd4 {[%clk
0:01:29.2]} 23... Rfc8 {[%clk 0:00:21.5]} 24. Bb7 {[%clk 0:01:25.2]} 24... Re8
{[%clk 0:00:16.1]} 25. Re4 {[%clk 0:01:18.4]} 25... Nb6 {[%clk 0:00:14.2]} 26.
Rab4 {[%clk 0:01:15.9]} 26... Nd5 {[%clk 0:00:13.8]} 27. Bxd5 {[%clk 0:00:58.7]}
27... Rxd5 {[%clk 0:00:14.7]} 28. c4 {[%clk 0:00:58.8]} 28... Rc5 {[%clk
0:00:14.7]} 29. Bd6 {[%clk 0:00:59.2]} 29... Rc6 {[%clk 0:00:14.7]} 30. c5
{[%clk 0:00:59.6]} 30... Ra8 {[%clk 0:00:14.6]} 31. Kb2 {[%clk 0:00:56.6]} 31...
Ra2+ {[%clk 0:00:13.6]} 32. Kc3 {[%clk 0:00:56.5]} 32... Bf5 {[%clk 0:00:12.8]}
33. Re2 {[%clk 0:00:54.4]} 33... Ra3+ {[%clk 0:00:10.6]} 34. Rb3 {[%clk
0:00:51.3]} 34... Ra2 {[%clk 0:00:10.9]} 35. f3 {[%clk 0:00:49.8]} 35... h5
{[%clk 0:00:10.5]} 36. Rb2 {[%clk 0:00:44.3]} 36... Ra3+ {[%clk 0:00:10.3]} 37.
Kc4 {[%clk 0:00:42.9]} 37... Ra8 {[%clk 0:00:09.7]} 38. Rb8+ {[%clk 0:00:38.7]}
38... Rxb8 {[%clk 0:00:09.6]} 39. Bxb8 {[%clk 0:00:39.6]} 39... f6 {[%clk
0:00:07.3]} 40. Bd6 {[%clk 0:00:38.7]} 40... Kf7 {[%clk 0:00:07.5]} 41. Kd5
{[%clk 0:00:38.4]} 41... Rc8 {[%clk 0:00:07.2]} 42. Re7+ {[%clk 0:00:38.5]}
42... Kg6 {[%clk 0:00:07.2]} 43. c6 {[%clk 0:00:34.6]} 43... Bxc2 {[%clk
0:00:07.3]} 44. c7 {[%clk 0:00:34.6]} 44... Bf5 {[%clk 0:00:06.9]} 45. Re2
{[%clk 0:00:23.8]} 45... Ra8 {[%clk 0:00:06.3]} 46. Rb2 {[%clk 0:00:24.2]} 46...
Ra1 {[%clk 0:00:04.7]} 47. Bf4 {[%clk 0:00:21.5]} 47... Rd1+ {[%clk 0:00:04.3]}
48. Kc6 {[%clk 0:00:20.4]} 48... Rd4 {[%clk 0:00:04.6]} 49. g3 {[%clk
0:00:18.3]} 49... Rc4+ {[%clk 0:00:04.7]} 50. Kb7 {[%clk 0:00:18.3]} 50... Kf7
{[%clk 0:00:04.2]} 51. Rb5 {[%clk 0:00:17.9]} 51... Bd7 {[%clk 0:00:03.8]} 52.
Rxh5 {[%clk 0:00:14.1]} 52... Bc6+ {[%clk 0:00:03.5]} 53. Kb8 {[%clk 0:00:12.7]}
53... Bxf3 {[%clk 0:00:03.6]} 54. Rh8 {[%clk 0:00:06.1]} 54... Bg4 {[%clk
0:00:03.2]} 55. c8=Q {[%clk 0:00:06.4]} 55... Bxc8 {[%clk 0:00:02.4]} 56. Rxc8
{[%clk 0:00:07.3]} 56... Rb4+ {[%clk 0:00:02.9]} 57. Kc7 {[%clk 0:00:06.8]}
57... Ke6 {[%clk 0:00:02.7]} 58. Re8+ {[%clk 0:00:05.7]} 58... Kf5 {[%clk
0:00:03]} 59. Re3 {[%clk 0:00:05.1]} 59... g5 {[%clk 0:00:03.2]} 60. hxg5 {[%clk
0:00:05.9]} 60... fxg5 {[%clk 0:00:03.9]} 61. Re5+ {[%clk 0:00:06.1]} 61... Kf6
{[%clk 0:00:04]} 62. Rxg5 {[%clk 0:00:07]} 62... Rc4+ {[%clk 0:00:04.4]} 63. Kd6
{[%clk 0:00:07.1]} 63... Ra4 {[%clk 0:00:04.8]} 64. Kd5 {[%clk 0:00:07.2]} 64...
Ra5+ {[%clk 0:00:05.2]} 65. Ke4 {[%clk 0:00:06.5]} 65... Rxg5 {[%clk 0:00:06.1]}
66. Bxg5+ {[%clk 0:00:06.8]} 66... Kxg5 {[%clk 0:00:06.8]} 67. Kf3 {[%clk
0:00:07.3]} 67... Kf5 {[%clk 0:00:07.4]} 68. g4+ {[%clk 0:00:08.2]} 68... Kg5
{[%clk 0:00:07.8]} 69. Kg3 {[%clk 0:00:09.1]} 69... Kg6 {[%clk 0:00:08.3]} 70.
Kf4 {[%clk 0:00:10]} 70... Kf6 {[%clk 0:00:08.8]} 71. g5+ {[%clk 0:00:10.9]}
71... Kg6 {[%clk 0:00:09.3]} 72. Kg4 {[%clk 0:00:11.8]} 72... Kg7 {[%clk
0:00:09.8]} 73. Kf5 {[%clk 0:00:12.7]} 73... Kf7 {[%clk 0:00:10.3]} 74. g6+
{[%clk 0:00:13.6]} 74... Kg7 {[%clk 0:00:10.8]} 75. Kg5 {[%clk 0:00:13.8]} 75...
Kg8 {[%clk 0:00:11.3]} 76. Kh6 {[%clk 0:00:14.7]} 76... Kh8 {[%clk 0:00:11.7]}
77. Kh5 {[%clk 0:00:15.6]} 77... Kg7 {[%clk 0:00:11.8]} 78. Kg5 {[%clk
0:00:16.3]} 78... Kg8 {[%clk 0:00:12.2]} 79. Kf6 {[%clk 0:00:17.2]} 79... Kf8
{[%clk 0:00:12.5]} 80. g7+ {[%clk 0:00:18.1]} 80... Kg8 {[%clk 0:00:13]} 81. Kg6
{[%clk 0:00:19]} 1/2-1/2

[Event "Late-Titled-Tuesday-Blitz-February-20-2024"]
[Site "Chess.com"]
[Date "2024.02.20"]
[Round "1"]
[White "akanga001"]
[Black "Herman-NY"]
[Result "1/2-1/2"]
[WhiteElo "2021"]
[BlackElo "2524"]
[TimeControl "180+1"]
[EndTime "14:08:38 PST"]
[Termination "Game drawn - insufficient material"]

1. d4 {[%clk 0:02:58.8]} 1... Nf6 {[%clk 0:03:00.1]} 2. c4 {[%clk 0:02:58.3]}
2... g6 {[%clk 0:03:00.6]} 3. Nc3 {[%clk 0:02:57.9]} 3... Bg7 {[%clk 0:03:01.3]}
4. e4 {[%clk 0:02:57.5]} 4... d6 {[%clk 0:03:02]} 5. Nge2 {[%clk 0:02:57.6]}
5... O-O {[%clk 0:03:01.3]} 6. Ng3 {[%clk 0:02:56.8]} 6... c6 {[%clk 0:02:59.9]}
7. Be2 {[%clk 0:02:56]} 7... a6 {[%clk 0:02:59.9]} 8. a4 {[%clk 0:02:54.4]} 8...
a5 {[%clk 0:03:00]} 9. h4 {[%clk 0:02:52.5]} 9... h5 {[%clk 0:02:55.7]} 10. Bg5
{[%clk 0:02:49.8]} 10... Nh7 {[%clk 0:02:46.1]} 11. Be3 {[%clk 0:02:44.9]} 11...
Na6 {[%clk 0:02:37.8]} 12. Qd2 {[%clk 0:02:42.5]} 12... Nb4 {[%clk 0:02:37.5]}
13. O-O {[%clk 0:01:54.3]} 13... e6 {[%clk 0:02:26.3]} 14. Bh6 {[%clk
0:01:31.1]} 14... Qxh4 {[%clk 0:02:22.4]} 15. Bxg7 {[%clk 0:01:28.1]} 15... Kxg7
{[%clk 0:02:23.3]} 16. Rac1 {[%clk 0:01:10.6]} 16... b6 {[%clk 0:02:00.5]} 17.
Qe3 {[%clk 0:01:08.8]} 17... Ra7 {[%clk 0:01:47]} 18. f4 {[%clk 0:01:08]} 18...
f5 {[%clk 0:01:30.4]} 19. d5 {[%clk 0:00:57.4]} 19... Re7 {[%clk 0:01:15.4]} 20.
dxc6 {[%clk 0:00:52.8]} 20... Nxc6 {[%clk 0:01:12.1]} 21. Nb5 {[%clk 0:00:50.6]}
21... Rd8 {[%clk 0:00:38.8]} 22. Rfd1 {[%clk 0:00:48.3]} 22... e5 {[%clk
0:00:34]} 23. Nf1 {[%clk 0:00:40.1]} 23... Qxf4 {[%clk 0:00:27.8]} 24. Qxb6
{[%clk 0:00:38.6]} 24... Bb7 {[%clk 0:00:16.8]} 25. exf5 {[%clk 0:00:25.5]}
25... Qxf5 {[%clk 0:00:14]} 26. Nxd6 {[%clk 0:00:24.3]} 26... Qd7 {[%clk
0:00:09.7]} 27. Nxb7 {[%clk 0:00:22.3]} 27... Qxb7 {[%clk 0:00:10.6]} 28. Qe3
{[%clk 0:00:19]} 28... Nd4 {[%clk 0:00:08.3]} 29. Rxd4 {[%clk 0:00:17.4]} 29...
exd4 {[%clk 0:00:08.2]} 30. Qd3 {[%clk 0:00:15.1]} 30... Qe4 {[%clk 0:00:07.7]}
31. Qxe4 {[%clk 0:00:13.3]} 31... Rxe4 {[%clk 0:00:08.6]} 32. Bd3 {[%clk
0:00:13.4]} 32... Re5 {[%clk 0:00:08.2]} 33. Ng3 {[%clk 0:00:12.8]} 33... Nf6
{[%clk 0:00:08.5]} 34. Ne2 {[%clk 0:00:11.5]} 34... Nd7 {[%clk 0:00:07.7]} 35.
Nf4 {[%clk 0:00:11.3]} 35... Nc5 {[%clk 0:00:06.7]} 36. Rd1 {[%clk 0:00:10.2]}
36... Nxd3 {[%clk 0:00:06.1]} 37. Rxd3 {[%clk 0:00:10.1]} 37... Re3 {[%clk
0:00:05.6]} 38. Rd2 {[%clk 0:00:10.2]} 38... d3 {[%clk 0:00:05.9]} 39. Nd5
{[%clk 0:00:10]} 39... Re2 {[%clk 0:00:05.5]} 40. Rxd3 {[%clk 0:00:09.9]} 40...
Rxb2 {[%clk 0:00:05.9]} 41. Re3 {[%clk 0:00:08.7]} 41... Rc2 {[%clk 0:00:05.8]}
42. Re7+ {[%clk 0:00:08.5]} 42... Kh6 {[%clk 0:00:06.4]} 43. Nf6 {[%clk
0:00:08.2]} 43... Rd1+ {[%clk 0:00:05]} 44. Kh2 {[%clk 0:00:08]} 44... Rdd2
{[%clk 0:00:05.9]} 45. Rh7+ {[%clk 0:00:06.6]} 45... Kg5 {[%clk 0:00:06.2]} 46.
Ne4+ {[%clk 0:00:06.9]} 46... Kf5 {[%clk 0:00:06.8]} 47. Nxd2 {[%clk 0:00:07]}
47... Rxd2 {[%clk 0:00:07.7]} 48. Ra7 {[%clk 0:00:06.7]} 48... g5 {[%clk
0:00:05.7]} 49. Rxa5+ {[%clk 0:00:07.6]} 49... Kg4 {[%clk 0:00:06.3]} 50. Rd5
{[%clk 0:00:06.4]} 50... Rc2 {[%clk 0:00:06.1]} 51. Rd4+ {[%clk 0:00:06.4]}
51... Kf5 {[%clk 0:00:06.5]} 52. a5 {[%clk 0:00:07.3]} 52... Ra2 {[%clk
0:00:06.8]} 53. Rd5+ {[%clk 0:00:07.7]} 53... Kg4 {[%clk 0:00:07.3]} 54. Rb5
{[%clk 0:00:07.7]} 54... h4 {[%clk 0:00:06.1]} 55. Rb4 {[%clk 0:00:06.9]} 55...
Rxa5 {[%clk 0:00:05.3]} 56. c5+ {[%clk 0:00:07.8]} 56... Kh5 {[%clk 0:00:05.3]}
57. Rc4 {[%clk 0:00:08.7]} 57... Ra7 {[%clk 0:00:05.2]} 58. c6 {[%clk
0:00:09.6]} 58... Rc7 {[%clk 0:00:06.1]} 59. Rc5 {[%clk 0:00:09.3]} 59... Kg6
{[%clk 0:00:06.1]} 60. Kh3 {[%clk 0:00:06.5]} 60... Kh5 {[%clk 0:00:06.5]} 61.
g3 {[%clk 0:00:05.6]} 61... hxg3 {[%clk 0:00:06.6]} 62. Kxg3 {[%clk 0:00:05.8]}
62... Kg6 {[%clk 0:00:07.2]} 63. Kg4 {[%clk 0:00:05.7]} 63... Kf6 {[%clk
0:00:07.7]} 64. Rxg5 {[%clk 0:00:04.5]} 64... Rxc6 {[%clk 0:00:08.3]} 65. Kh5
{[%clk 0:00:04.8]} 65... Re6 {[%clk 0:00:07.9]} 66. Rg6+ {[%clk 0:00:05]} 66...
Kf5 {[%clk 0:00:08.5]} 67. Rxe6 {[%clk 0:00:05.8]} 67... Kxe6 {[%clk 0:00:09.4]}
1/2-1/2